fUSD/lending_fUSD_20260322
["ID","MTS","AMOUNT","RATE_DAILY","PERIOD"]
[408750163,1774192245434,-500.0,0.00013698,2]
[408750164,1774192245444,-500.0,0.00013698,2]
[408750165,1774192245454,-500.0,0.00013698,2]
[408750166,1774192245464,-500.0,0.00013698,2]
[408750167,1774192245474,-500.0,0.00013698,2]
[408750168,1774192245483,-500.0,0.00013698,2]
[408750169,1774192245494,-500.0,0.00013698,2]
[408750170,1774192245503,-500.0,0.00013698,2]
[408750171,1774192245513,-500.0,0.00013698,2]
[408750172,1774192245522,-500.0,0.00013698,2]
[408750173,1774192245531,-500.0,0.00013698,2]
[408750174,1774192245540,-500.0,0.00013698,2]
[408750175,1774192245549,-500.0,0.00013698,2]
[408750176,1774192245558,-500.0,0.00013698,2]
[408750177,1774192245568,-500.0,0.00013698,2]
[408750178,1774192245577,-500.0,0.00013698,2]
[408750179,1774192245586,-500.0,0.00013698,2]
[408750180,1774192245596,-500.0,0.00013698,2]
[408750181,1774192245605,-500.0,0.00013698,2]
[408750182,1774192245614,-500.0,0.00013698,2]
[408750183,1774192245624,-522.93,0.00013698,2]
[408750184,1774192245633,-522.93,0.00013698,2]
[408750185,1774192245643,-522.93,0.00013698,2]
[408750186,1774192245652,-522.93,0.00013698,2]
[408750187,1774192245662,-522.93,0.00013698,2]
[408750188,1774192245672,-522.93,0.00013698,2]
[408750189,1774192245681,-522.93,0.00013698,2]
[408750190,1774192245691,-522.93,0.00013698,2]
[408750191,1774192245701,-522.93,0.00013698,2]
[408750192,1774192245710,-522.93,0.00013698,2]
[408750193,1774192245719,-500.0,0.00013698,2]
[408750194,1774192245729,-500.0,0.00013698,2]
[408750195,1774192245738,-500.0,0.00013698,2]
[408750196,1774192245748,-500.0,0.00013698,2]
[408750197,1774192245757,-500.0,0.00013698,2]
[408750198,1774192245767,-500.0,0.00013698,2]
[408750199,1774192245777,-500.0,0.00013698,2]
[408750200,1774192245786,-500.0,0.00013698,2]
[408750201,1774192245798,-500.0,0.00013698,2]
[408750202,1774192245808,-500.0,0.00013698,2]
[408750203,1774192245818,-500.0,0.00013698,2]
[408750204,1774192245828,-289.40790196,0.00013698,2]
[408750205,1774192245839,-500.0,0.00013698,2]
[408750206,1774192245849,-500.0,0.00013698,2]
[408750207,1774192245859,-500.0,0.00013698,2]
[408750208,1774192245869,-500.0,0.00013698,2]
[408750209,1774192245879,-500.0,0.00013698,2]
[408750210,1774192245889,-500.0,0.00013698,2]
[408750211,1774192245899,-615.54336867,0.00013698,2]
[408750212,1774192245910,-500.0,0.00013698,2]
[408750213,1774192245920,-506.62310437,0.00013698,2]
[408750214,1774192245931,-500.0,0.00013698,2]
[408750215,1774192245941,-500.0,0.00013698,2]
[408750216,1774192245951,-500.0,0.00013698,2]
[408750217,1774192245961,-500.0,0.00013698,2]
[408750218,1774192245970,-500.0,0.00013698,2]
[408750219,1774192245980,-500.0,0.00013698,2]
[408750220,1774192245989,-500.0,0.00013698,2]
[408750221,1774192245999,-500.0,0.00013698,2]
[408750222,1774192246009,-500.0,0.00013698,2]
[408750223,1774192246019,-180.31740041,0.00013698,2]
[408750224,1774192246029,-592.228816,0.00013698,2]
[408750225,1774192246038,-500.0,0.00013698,2]
[408750226,1774192246048,-500.0,0.00013698,2]
[408750227,1774192246057,-500.0,0.00013698,2]
[408750228,1774192246067,-500.0,0.00013698,2]
[408750229,1774192246077,-500.0,0.00013698,2]
[408750230,1774192246088,-500.0,0.00013698,2]
[408750231,1774192246099,-500.0,0.00013698,2]
[408750232,1774192246109,-500.0,0.00013698,2]
[408750233,1774192246118,-500.0,0.00013698,2]
[408750234,1774192246128,-473.27396647,0.00013698,2]
[408750235,1774192246138,-151.0,0.00013698,2]
[408750236,1774192246149,-151.0,0.00013698,2]
[408750237,1774192246159,-906.383334,0.00013698,2]
[408750238,1774192246168,-906.383334,0.00013698,2]
[408750239,1774192246178,-906.383334,0.00013698,2]
[408750240,1774192246188,-906.383334,0.00013698,2]
[408750241,1774192246197,-1133.822945,0.00013698,2]
[408750242,1774192246207,-1133.822945,0.00013698,2]
[408750243,1774192246216,-1133.822945,0.00013698,2]
[408750244,1774192246227,-1133.822945,0.00013698,2]
[408750245,1774192246237,-150.0,0.00013699,2]
[408750246,1774192246247,-150.0,0.00013699,2]
[408750247,1774192246256,-150.0,0.00013699,2]
[408750248,1774192246266,-500.0,0.00013699,2]
[408750249,1774192246276,-500.70382414,0.00013699,2]
[408750250,1774192246285,-500.0,0.00013699,2]
[408750251,1774192246298,-500.0,0.00013699,2]
[408750252,1774192246307,-500.0,0.00013699,2]
[408750253,1774192246317,-500.0,0.00013699,2]
[408750254,1774192246327,-500.0,0.00013699,2]
[408750255,1774192246339,-500.0,0.00013699,2]
[408750256,1774192246349,-500.74920901,0.00013699,2]
[408750257,1774192246358,-500.43058459,0.00013699,2]
[408750258,1774192246371,-500.4848322,0.00013699,2]
[408750259,1774192246382,-500.0,0.00013699,2]
[408750260,1774192246392,-500.55967201,0.00013699,2]
[408750261,1774192246402,-500.0,0.00013699,2]
[408750262,1774192246411,-500.44177829,0.00013699,2]
[408750263,1774192246421,-500.0,0.00013699,2]
[408750264,1774192246430,-500.0,0.00013699,2]
[408750265,1774192246440,-500.0,0.00013699,2]
[408750266,1774192246449,-582.65651295,0.00013699,2]
[408750267,1774192246460,-500.0,0.00013699,2]
[408750268,1774192246470,-1744.06,0.000137,2]
[408750269,1774192246479,-1291.84,0.000137,2]
[408750270,1774192246488,-1746.61,0.000137,2]
[408750271,1774192246497,-1991.25,0.000137,2]
[408750272,1774192246507,-901.36,0.000137,2]
[408750273,1774192246516,-2696.6,0.000137,2]
[408750274,1774192246525,-542.19,0.00013705,2]
[408750275,1774192246535,-946.64,0.00013705,2]
[408750276,1774192246544,-200.0,0.00013743,2]
[408750277,1774192246553,-955.61079819,0.00013803,2]
[408750278,1774192246563,-174.47964956,0.00013803,2]
[408750279,1774192246572,-159.77,0.00013866,2]
[408750280,1774192246582,-150.0,0.00013973,2]
[408750281,1774192246592,-500.0,0.00014,2]
[408750282,1774192246602,-26878.8631985,0.00014014,2]
[408750283,1774192246611,-500.0,0.00014052,2]
[408750284,1774192246621,-150.0,0.00014063,2]
[408750285,1774192246630,-666.0,0.00014102,2]
[408750286,1774192246639,-47929.52421622,0.00014103,2]
[408750287,1774192246649,-666.0,0.00014114,2]
[408750288,1774192246659,-60000.0,0.00014115,2]
[408750289,1774192246668,-150.0,0.00014186,2]
[408750290,1774192246678,-186.62,0.00014236,2]
[408750291,1774192246688,-500.0,0.00014246,2]
[408750292,1774192246697,-505.59,0.00014246,2]
[408750293,1774192246707,-502.54227332,0.00014247,2]
[408750294,1774192246717,-1000.0,0.00014247,2]
[408750295,1774192246727,-1000.0,0.00014247,2]
[408750296,1774192246737,-1001.53007131,0.00014247,2]
[408750297,1774192246746,-1000.0,0.00014247,2]
[408750298,1774192246756,-1000.0,0.00014247,2]
[408750300,1774192246766,-1000.0,0.00014247,2]
[408750302,1774192246776,-507.92423982,0.00014247,2]
[408750303,1774192246785,-505.99225948,0.00014247,2]
[408750304,1774192246795,-1000.0,0.00014247,2]
[408750305,1774192246804,-1600.0,0.00014266,2]
[408750306,1774192246814,-156.0,0.00014274,3]
[408750309,1774192246823,-200.0,0.00014291,2]
[408750312,1774192246833,-160.0,0.00014312,2]
[408750314,1774192246843,-979.16666667,0.00014312,2]
[408750316,1774192246852,-160.0,0.00014312,2]
[408750318,1774192246861,-160.0,0.00014312,2]
[408750320,1774192246872,-150.0,0.00014344,2]
[408750322,1774192246881,-9211.34798985,0.00014404,2]
[408750324,1774192246891,-250.0,0.00014404,2]
[408750326,1774192246900,-695.39793187,0.00014404,2]
[408750328,1774192246911,-151.0,0.00014404,2]
[408750330,1774192246920,-500.0,0.00014404,2]
[408750332,1774192246930,-500.0,0.00014404,2]
[408750334,1774192246939,-250.0,0.00014404,2]
[408750336,1774192246949,-201.93286099,0.00014404,2]
[408750338,1774192246958,-500.0,0.00014404,2]
[408750340,1774192246967,-250.0,0.00014404,2]
[408750342,1774192246977,-500.0,0.00014404,2]
[408750344,1774192246986,-250.0,0.00014404,2]
[408750346,1774192246996,-500.0,0.00014404,2]
[408750348,1774192247006,-250.0,0.00014404,2]
[408750349,1774192247015,-500.0,0.00014404,2]
[408750350,1774192247025,-250.0,0.00014404,2]
[408750351,1774192247036,-500.0,0.00014404,2]
[408750352,1774192247045,-250.0,0.00014404,2]
[408750353,1774192247055,-500.0,0.00014404,2]
[408750354,1774192247064,-250.0,0.00014404,2]
[408750355,1774192247074,-500.0,0.00014404,2]
[408750356,1774192247084,-250.0,0.00014404,2]
[408750357,1774192247094,-500.0,0.00014404,2]
[408750358,1774192247103,-250.0,0.00014404,2]
[408750359,1774192247113,-500.0,0.00014404,2]
[408750360,1774192247123,-250.0,0.00014404,2]
[408750361,1774192247133,-500.0,0.00014404,2]
[408750362,1774192247142,-250.0,0.00014404,2]
[408750363,1774192247152,-500.0,0.00014404,2]
[408750364,1774192247162,-151.0,0.00014404,2]
[408750365,1774192247171,-216.69961436,0.00014404,2]
[408750366,1774192247181,-500.0,0.00014404,2]
[408750367,1774192247191,-500.0,0.00014404,2]
[408750368,1774192247200,-500.0,0.00014404,2]
[408750369,1774192247210,-500.0,0.00014404,2]
[408750370,1774192247219,-500.0,0.00014404,2]
[408750371,1774192247229,-500.0,0.00014404,2]
[408750372,1774192247238,-578.20924308,0.00014404,2]
[408750373,1774192247248,-500.0,0.00014404,2]
[408750374,1774192247257,-500.0,0.00014404,2]
[408750375,1774192247267,-500.0,0.00014404,2]
[408750376,1774192247276,-500.0,0.00014404,2]
[408750377,1774192247286,-500.0,0.00014404,2]
[408750378,1774192247299,-500.0,0.00014404,2]
[408750379,1774192247309,-500.0,0.00014404,2]
[408750380,1774192247463,-500.0,0.00014404,2]
[408750381,1774192247474,-250.0,0.00014404,2]
[408750382,1774192247484,-500.0,0.00014404,2]
[408750383,1774192247496,-500.0,0.00014404,2]
[408750384,1774192247505,-250.0,0.00014404,2]
[408750385,1774192247515,-500.0,0.00014404,2]
[408750386,1774192247525,-500.0,0.00014404,2]
[408750387,1774192247535,-250.0,0.00014404,2]
[408750388,1774192247544,-500.0,0.00014404,2]
[408750389,1774192247553,-250.0,0.00014404,2]
[408750390,1774192247563,-500.0,0.00014404,2]
[408750391,1774192247572,-250.0,0.00014404,2]
[408750392,1774192247581,-500.0,0.00014404,2]
[408750393,1774192247590,-250.0,0.00014404,2]
[408750394,1774192247599,-500.0,0.00014404,2]
[408750395,1774192247609,-250.0,0.00014404,2]
[408750396,1774192247618,-500.0,0.00014404,2]
[408750397,1774192247628,-250.0,0.00014404,2]
[408750398,1774192247637,-250.0,0.00014404,2]
[408750399,1774192247646,-500.0,0.00014404,2]
[408750400,1774192247655,-250.0,0.00014404,2]
[408750401,1774192247665,-250.0,0.00014404,2]
[408750402,1774192247674,-250.0,0.00014404,2]
[408750403,1774192247684,-250.0,0.00014404,2]
[408750404,1774192247694,-250.0,0.00014404,2]
[408750405,1774192247703,-250.0,0.00014404,2]
[408750406,1774192247713,-250.0,0.00014404,2]
[408750407,1774192247723,-250.0,0.00014404,2]
[408750408,1774192247732,-250.0,0.00014404,2]
[408750409,1774192247742,-250.0,0.00014404,2]
[408750410,1774192247751,-250.0,0.00014404,2]
[408750411,1774192247760,-250.0,0.00014404,2]
[408750412,1774192247771,-250.0,0.00014404,2]
[408750413,1774192247780,-250.0,0.00014404,2]
[408750414,1774192247789,-182.03046593,0.00014404,2]
[408750415,1774192247798,-201.93286099,0.00014404,2]
[408750416,1774192247808,-250.0,0.00014404,2]
[408750417,1774192247817,-200.0,0.00014404,2]
[408750418,1774192247827,-250.0,0.00014404,2]
[408750419,1774192247836,-250.0,0.00014404,2]
[408750420,1774192247846,-250.0,0.00014404,2]
[408750421,1774192247855,-250.0,0.00014404,2]
[408750422,1774192247864,-250.0,0.00014404,2]
[408750423,1774192247873,-250.0,0.00014404,2]
[408750424,1774192247883,-250.0,0.00014404,2]
[408750425,1774192247892,-250.0,0.00014404,2]
[408750426,1774192247901,-250.0,0.00014404,2]
[408750427,1774192247910,-250.0,0.00014404,2]
[408750428,1774192247920,-250.0,0.00014404,2]
[408750429,1774192247930,-262.90206542,0.00014404,2]
[408750430,1774192247939,-174.61919141,0.00014404,2]
[408750431,1774192247949,-743.50770149,0.00014404,2]
[408750432,1774192247958,-151.0,0.00014404,2]
[408750433,1774192247968,-668.65185757,0.00014404,2]
[408750434,1774192247977,-151.0,0.00014404,2]
[408750435,1774192247986,-156.587,0.00014404,2]
[408750436,1774192247996,-194.25887118,0.00014404,2]
[408750437,1774192248006,-279.9045709,0.00014404,2]
[408750438,1774192248016,-500.0,0.00014404,2]
[408750439,1774192248025,-500.0,0.00014404,2]
[408750440,1774192248034,-500.0,0.00014404,2]
[408750441,1774192248043,-500.0,0.00014404,2]
[408750442,1774192248052,-500.0,0.00014404,2]
[408750443,1774192248062,-159.77,0.0001442,2]
[408750444,1774192248071,-9552.16786547,0.00014459,2]
[408750445,1774192248081,-500.0,0.00014459,2]
[408750446,1774192248090,-272.62944185,0.00014459,2]
[408750447,1774192248100,-151.0,0.00014459,2]
[408750448,1774192248109,-150.0,0.0001447,2]
[408750449,1774192248118,-167.4438,0.000145,2]
[408750450,1774192248128,-9905.5980765,0.00014514,2]
[408750451,1774192248138,-500.0,0.00014514,2]
[408750452,1774192248147,-282.71673119,0.00014514,2]
[408750453,1774192248157,-151.0,0.00014514,2]
[408750454,1774192248166,-10272.10520533,0.00014569,2]
[408750455,1774192248176,-500.0,0.00014569,2]
[408750456,1774192248186,-293.17725025,0.00014569,2]
[408750457,1774192248195,-151.0,0.00014569,2]
[408750458,1774192248206,-4609.0,0.00014588,2]
[408750459,1774192248216,-1152.0,0.0001459,2]
[408750460,1774192248225,-1000.0,0.000146,2]
[408750461,1774192248235,-150.49957673,0.000146,2]
[408750462,1774192248243,-10652.17309792,0.00014624,2]
[408750463,1774192248253,-500.0,0.00014624,2]
[408750464,1774192248263,-304.02480851,0.00014624,2]
[408750465,1774192248273,-151.0,0.00014624,2]
[408750466,1774192248282,-26878.8631985,0.00014643,2]
[408750467,1774192248292,-11046.30350255,0.00014679,2]
[408750468,1774192248305,-500.0,0.00014679,2]
[408750469,1774192248314,-315.27372642,0.00014679,2]
[408750470,1774192248325,-151.0,0.00014679,2]
[408750471,1774192248335,-672.44576879,0.00014701,2]
[408750472,1774192248345,-47929.52421622,0.00014702,2]
[408750473,1774192248354,-151.0,0.00014704,2]
[408750474,1774192248364,-151.0,0.00014704,2]
[408750475,1774192248376,-151.0,0.00014704,2]
[408750476,1774192248385,-500.0,0.0001471,2]
[408750477,1774192248394,-11455.01673214,0.00014734,2]
[408750478,1774192248403,-500.0,0.00014734,2]
[408750479,1774192248413,-326.9388543,0.00014734,2]
[408750480,1774192248424,-151.0,0.00014734,2]
[408750481,1774192248435,-2000.0,0.0001476,2]
[408750482,1774192248445,-150.0,0.00014766,2]
[408750483,1774192248456,-11878.85235123,0.00014789,2]
[408750484,1774192248466,-500.0,0.00014789,2]
[408750485,1774192248475,-339.03559191,0.00014789,2]
[408750486,1774192248486,-151.0,0.00014789,2]
[408750487,1774192248496,-500.0,0.00014792,2]
[408750488,1774192248506,-505.59,0.00014792,2]
[408750489,1774192248516,-542.19,0.00014794,2]
[408750490,1774192248528,-946.64,0.00014794,2]
[408750491,1774192248537,-1500.0,0.00014795,2]
[408750492,1774192248546,-1500.0,0.00014795,2]
[408750493,1774192248555,-1500.0,0.00014795,2]
[408750494,1774192248565,-1500.0,0.00014795,2]
[408750495,1774192248575,-1158.78645597,0.00014795,2]
[408750496,1774192248585,-419.75064279,0.00014795,2]
[408750497,1774192248595,-262.25132483,0.00014824,2]
[408750498,1774192248605,-200.0,0.00014839,2]
[408750499,1774192248614,-12318.36988823,0.00014844,2]
[408750500,1774192248623,-500.0,0.00014844,2]
[408750501,1774192248632,-151.0,0.00014844,2]
[408750502,1774192248642,-150.0,0.00014896,2]
[408750503,1774192248651,-12774.14957409,0.00014899,2]
[408750504,1774192248660,-500.0,0.00014899,2]
[408750505,1774192248670,-151.0,0.00014899,2]
[408750506,1774192248680,-335.73,0.000149,2]
[408750507,1774192248689,-358.49,0.000149,2]
[408750508,1774192248698,-500.0,0.00014925,2]
[408750509,1774192248708,-2227.58,0.00014925,2]
[408750510,1774192248717,-500.0,0.00014925,2]
[408750511,1774192248727,-500.0,0.00014925,2]
[408750512,1774192248736,-522.93,0.00014925,2]
[408750513,1774192248745,-500.0,0.00014925,2]
[408750514,1774192248754,-50894.14,0.00014926,2]
[408750515,1774192248763,-10409.38528038,0.00014938,2]
[408750516,1774192248773,-709.0,0.0001494,2]
[408750517,1774192248782,-151.0,0.00014946,2]
[408750518,1774192248791,-151.0,0.00014946,2]
[408750519,1774192248801,-151.0,0.00014946,2]
[408750520,1774192248810,-166.833725,0.00014946,2]
[408750521,1774192248819,-151.0,0.00014946,2]
[408750522,1774192248828,-151.0,0.00014946,2]
[408750523,1774192248837,-157.385589,0.00014946,2]
[408750524,1774192248847,-151.0,0.00014952,2]
[408750525,1774192248856,-171.63596104,0.00014952,2]
[408750526,1774192248865,-209.40437684,0.00014952,2]
[408750527,1774192248874,-200.0,0.00014952,2]
[408750528,1774192248883,-181.08010149,0.00014952,2]
[408750529,1774192248893,-771.01748645,0.00014952,2]
[408750530,1774192248903,-693.3919763,0.00014952,2]
[408750531,1774192248912,-290.26104003,0.00014952,2]
[408750532,1774192248921,-3075.72,0.00014953,2]
[408750533,1774192248931,-13246.79310833,0.00014954,2]
[408750534,1774192248940,-500.0,0.00014954,2]
[408750535,1774192248949,-151.0,0.00014954,2]
[408750536,1774192248959,-416.039852,0.00014955,2]
[408750537,1774192248968,-416.039852,0.00014955,2]
[408750538,1774192248977,-416.039852,0.00014955,2]
[408750539,1774192248986,-416.039852,0.00014955,2]
[408750540,1774192248995,-258.349245,0.00014955,2]
[408750541,1774192249004,-258.349245,0.00014955,2]
[408750542,1774192249013,-258.349245,0.00014955,2]
[408750543,1774192249023,-258.349245,0.00014955,2]
[408750544,1774192249032,-159.77,0.00014975,2]
[408750545,1774192249042,-300.0,0.00015,2]
[408750546,1774192249051,-2696.6,0.00015,2]
[408750547,1774192249059,-2040.0,0.00015,2]
[408750548,1774192249069,-13736.92445334,0.00015009,2]
[408750549,1774192249078,-500.0,0.00015009,2]
[408750550,1774192249087,-151.0,0.00015009,2]
[408750551,1774192249096,-262.25,0.00015096,2]
[408750552,1774192249105,-901.36,0.000151,2]
[408750553,1774192249114,-158.0,0.00015118,3]
[408750554,1774192249123,-1500.0,0.00015148,2]
[408750555,1774192249133,-150.0,0.00015188,2]
[408750556,1774192249142,-2000.0,0.000152,2]
[408750557,1774192249151,-10000.0,0.00015205,2]
[408750558,1774192249160,-26878.8631985,0.00015271,2]
[408750559,1774192249169,-500.0,0.00015288,2]
[408750560,1774192249178,-47929.52421622,0.00015301,2]
[408750561,1774192249187,-150.0,0.00015321,2]
[408750562,1774192249196,-542.19,0.00015336,2]
[408750563,1774192249206,-946.64,0.00015336,2]
[408750564,1774192249214,-1000.0,0.00015342,2]
[408750565,1774192249224,-1244.0069204,0.00015342,2]
[408750566,1774192249233,-482.79604468,0.00015342,2]
[408750567,1774192249242,-347.47666717,0.0001535,2]
[408750568,1774192249251,-217.73791025,0.00015387,2]
[408750569,1774192249260,-1746.61,0.000154,2]
[408750570,1774192249270,-1991.25,0.000154,2]
[408750571,1774192249279,-500.0,0.00015419,3]
[408750572,1774192249288,-438.79248748,0.0001549,2]
[408750573,1774192249301,-1291.84,0.000155,2]
[408750574,1774192249310,-151.0,0.000155,2]
[408750575,1774192249319,-217.15233878,0.000155,2]
[408750576,1774192249328,-200.0,0.000155,2]
[408750577,1774192249338,-187.78006525,0.000155,2]
[408750578,1774192249347,-799.54513345,0.000155,2]
[408750579,1774192249356,-719.04747942,0.000155,2]
[408750580,1774192249366,-301.00069851,0.000155,2]
[408750581,1774192249375,-155.52,0.00015634,2]
[408750582,1774192249384,-868.0,0.0001568,2]
[408750583,1774192249393,-573.03260881,0.00015696,2]
[408750584,1774192249402,-150.0,0.00015699,2]
[408750585,1774192249412,-150.0,0.00015701,2]
[408750586,1774192249421,-150.0,0.00015702,2]
[408750587,1774192249431,-185.789574,0.00015704,2]
[408750588,1774192249441,-5550.0,0.00015715,2]
[408750589,1774192249450,-500.0,0.00015726,2]
[408750590,1774192249462,-10000.0,0.0001574,2]
[408750591,1774192249473,-150.0,0.00015751,2]
[408750592,1774192249483,-155.52,0.00015767,2]
[408750593,1774192249492,-966.81684565,0.00015784,2]
[408750594,1774192249501,-5550.0,0.00015794,2]
[408750595,1774192249511,-173.698,0.000158,2]
[408750596,1774192249520,-2794.10845585,0.0001584,2]
[408750597,1774192249529,-500.0,0.00015871,2]
[408750598,1774192249538,-200.0,0.00015871,2]
[408750599,1774192249547,-500.0,0.00015872,2]
[408750600,1774192249556,-200.0,0.00015872,2]
[408750601,1774192249565,-500.0,0.00015872,2]
[408750602,1774192249574,-500.0,0.00015872,2]
[408750603,1774192249583,-500.0,0.00015872,2]
[408750604,1774192249592,-200.0,0.00015872,2]
[408750605,1774192249601,-200.0,0.00015872,2]
[408750606,1774192249610,-151.0,0.00015872,2]
[408750607,1774192249619,-151.0,0.00015872,2]
[408750608,1774192249629,-151.0,0.00015872,2]
[408750609,1774192249638,-1796.638819,0.00015872,2]
[408750610,1774192249648,-1796.638819,0.00015872,2]
[408750611,1774192249657,-1796.638819,0.00015872,2]
[408750612,1774192249666,-1796.638819,0.00015872,2]
[408750613,1774192249676,-151.0,0.00015872,2]
[408750614,1774192249685,-150.0,0.00015889,2]
[408750615,1774192249694,-500.0,0.00015899,2]
[408750616,1774192249704,-505.59,0.00015899,2]
[408750617,1774192249713,-47929.52421622,0.000159,2]
[408750618,1774192249723,-26878.8631985,0.000159,2]
[408750619,1774192249732,-395.64711056,0.000159,2]
[408750620,1774192249742,-151.0,0.000159,2]
[408750621,1774192249751,-151.0,0.000159,2]
[408750622,1774192249762,-906.383334,0.000159,2]
[408750623,1774192249771,-906.383334,0.000159,2]
[408750624,1774192249781,-906.383334,0.000159,2]
[408750625,1774192249791,-906.383334,0.000159,2]
[408750626,1774192249801,-1133.822945,0.000159,2]
[408750627,1774192249810,-1133.822945,0.000159,2]
[408750628,1774192249820,-1133.822945,0.000159,2]
[408750629,1774192249831,-1133.822945,0.000159,2]
[408750630,1774192249840,-2315.0,0.000159,5]
[408750631,1774192249850,-1859.0,0.000159,5]
[408750632,1774192249859,-868.0,0.00015903,2]
[408750633,1774192249869,-5550.0,0.0001592,2]
[408750634,1774192249878,-151.0,0.00015933,2]
[408750635,1774192249887,-157.0,0.00015942,2]
[408750636,1774192249896,-400.0,0.00015945,2]
[408750637,1774192249905,-400.0,0.00015945,2]
[408750638,1774192249915,-400.0,0.00015945,2]
[408750639,1774192249923,-400.0,0.00015945,2]
[408750640,1774192249933,-303.3462059,0.00015945,2]
[408750641,1774192249942,-157.0,0.00015954,2]
[408750642,1774192249953,-3625.57747866,0.0001596,2]
[408750643,1774192249963,-500.0,0.00015973,2]
[408750644,1774192249972,-500.0,0.00015973,2]
[408750645,1774192249981,-5550.0,0.00015976,2]
[408750646,1774192249991,-220.882194,0.00015997,2]
[408750647,1774192250000,-205.850296,0.00015997,2]
[408750648,1774192250010,-151.0,0.00015997,2]
[408750649,1774192250019,-500.0,0.00015999,2]
[408750650,1774192250028,-500.0,0.00015999,2]
[408750651,1774192250040,-500.0,0.00015999,2]
[408750652,1774192250049,-500.0,0.00015999,2]
[408750653,1774192250059,-391.0509546,0.00015999,2]
[408750654,1774192250068,-505.59,0.00015999,2]
[408750655,1774192250077,-505.59,0.00015999,2]
[408750656,1774192250086,-505.59,0.00015999,2]
[408750657,1774192250095,-505.59,0.00015999,2]
[408750658,1774192250104,-505.59,0.00015999,2]
[408750659,1774192250114,-505.59,0.00015999,2]
[408750660,1774192250123,-505.81,0.00015999,2]
[408750661,1774192250132,-542.19,0.00015999,2]
[408750662,1774192250141,-542.19,0.00015999,2]
[408750663,1774192250150,-542.19,0.00015999,2]
[408750664,1774192250160,-542.19,0.00015999,2]
[408750665,1774192250169,-542.19,0.00015999,2]
[408750666,1774192250178,-542.19,0.00015999,2]
[408750667,1774192250187,-542.19,0.00015999,2]
[408750668,1774192250196,-542.19,0.00015999,2]
[408750669,1774192250206,-542.19,0.00015999,2]
[408750670,1774192250217,-542.19,0.00015999,2]
[408750671,1774192250227,-542.3584638,0.00015999,2]
[408750672,1774192250238,-216.25909525,0.00015999,2]
[408750673,1774192250248,-946.64,0.00015999,2]
[408750674,1774192250257,-946.64,0.00015999,2]
[408750675,1774192250266,-946.64,0.00015999,2]
[408750676,1774192250275,-946.64,0.00015999,2]
[408750677,1774192250285,-946.64,0.00015999,2]
[408750678,1774192250298,-946.64,0.00015999,2]
[408750679,1774192250308,-946.64,0.00015999,2]
[408750680,1774192250317,-946.64,0.00015999,2]
[408750681,1774192250326,-946.64,0.00015999,2]
[408750682,1774192250337,-946.64,0.00015999,2]
[408750683,1774192250346,-946.80781504,0.00015999,2]
[408750684,1774192250356,-182.52560866,0.00015999,2]
[408750685,1774192250369,-328.21754948,0.00015999,2]
[408750686,1774192250378,-500.0,0.00015999,2]